fUSD/lending_fUSD_20260415
["ID","MTS","AMOUNT","RATE_DAILY","PERIOD"]
[420523924,1776238245951,-1352.93831,0.00014753,2]
[420523925,1776238245963,-202.19,0.0001476,2]
[420523926,1776238245974,-151.0,0.00014768,2]
[420523927,1776238245993,-1319.53975349,0.00014768,2]
[420523928,1776238246008,-979.59255841,0.00014768,2]
[420523929,1776238246020,-500.0,0.00014768,2]
[420523930,1776238246030,-500.7602683,0.00014768,2]
[420523931,1776238246046,-1500.0,0.00014768,2]
[420523932,1776238246056,-1502.35200479,0.00014768,2]
[420523933,1776238246071,-3302.0,0.00014774,4]
[420523934,1776238246082,-1439.0,0.00014795,2]
[420523935,1776238246096,-220.551923,0.00014795,2]
[420523936,1776238246110,-220.551923,0.00014795,2]
[420523937,1776238246122,-220.551923,0.00014795,2]
[420523938,1776238246137,-220.551923,0.00014795,2]
[420523939,1776238246149,-152.0,0.00014808,14]
[420523940,1776238246161,-1000.0,0.00014817,2]
[420523941,1776238246179,-189.643691,0.00014868,2]
[420523942,1776238246190,-152.0,0.00014881,15]
[420523943,1776238246203,-1000.0,0.00014887,2]
[420523944,1776238246217,-1008.81748156,0.00014899,5]
[420523945,1776238246233,-10000.0,0.000149,2]
[420523946,1776238246244,-153.612502,0.00014919,2]
[420523947,1776238246266,-152.0,0.00014954,16]
[420523948,1776238246281,-287.901496,0.00014975,2]
[420523949,1776238246295,-168.0,0.00014976,2]
[420523950,1776238246317,-508.0,0.00014978,3]
[420523951,1776238246329,-2815.0,0.0001498,2]
[420523952,1776238246354,-238.1571079,0.00014984,2]
[420523953,1776238246369,-169.28270706,0.00014984,2]
[420523954,1776238246396,-236.48280343,0.00014984,2]
[420523955,1776238246418,-207.23566187,0.00014984,2]
[420523956,1776238246448,-1000.0,0.00014989,2]
[420523957,1776238246468,-1467.49931248,0.00014994,2]
[420523958,1776238246494,-510.69519687,0.00014999,2]
[420523959,1776238246510,-500.0,0.00014999,2]
[420523960,1776238246529,-1114.528901,0.00014999,2]
[420523961,1776238246551,-1114.528901,0.00014999,2]
[420523962,1776238246571,-1114.528901,0.00014999,2]
[420523963,1776238246599,-1114.528901,0.00014999,2]
[420523964,1776238246618,-151.0,0.00014999,2]
[420523965,1776238246660,-500.0,0.00014999,2]
[420523967,1776238246675,-10275.45412455,0.00015,2]
[420523969,1776238246711,-164.9214,0.00015,2]
[420523970,1776238246752,-243.2936,0.00015,2]
[420523971,1776238246765,-300.0,0.00015,2]
[420523973,1776238246796,-1113.936725,0.00015,2]
[420523974,1776238246810,-1113.936725,0.00015,2]
[420523975,1776238246826,-1113.936725,0.00015,2]
[420523976,1776238246850,-1113.936725,0.00015,2]
[420523977,1776238246862,-164.31301849,0.00015013,2]
[420523978,1776238246887,-168.3888056,0.00015021,2]
[420523979,1776238246898,-194.72792766,0.00015021,2]
[420523980,1776238246911,-152.0,0.00015026,17]
[420523981,1776238246942,-1000.0,0.00015035,2]
[420523983,1776238246985,-3302.0,0.00015048,4]
[420523985,1776238247005,-1000.0,0.0001506,2]
[420523986,1776238247028,-1439.0,0.00015068,2]
[420523987,1776238247052,-632.66,0.00015068,2]
[420523988,1776238247080,-151.0,0.00015068,2]
[420523989,1776238247111,-151.0,0.00015068,2]
[420523990,1776238247178,-151.0,0.00015068,2]
[420523991,1776238247216,-151.0,0.00015068,2]
[420523992,1776238247235,-151.0,0.00015068,2]
[420523993,1776238247251,-151.0,0.00015068,2]
[420523994,1776238247279,-151.0,0.00015068,2]
[420523995,1776238247290,-151.0,0.00015068,2]
[420523996,1776238247321,-151.0,0.00015068,2]
[420523997,1776238247335,-151.0,0.00015068,2]
[420523998,1776238247358,-206.180717,0.00015068,2]
[420523999,1776238247374,-150.0,0.00015071,2]
[420524000,1776238247389,-5000.0,0.00015074,2]
[420524001,1776238247408,-151.0,0.00015074,2]
[420524002,1776238247420,-151.0,0.00015074,2]
[420524003,1776238247430,-152.0,0.00015099,18]
[420524004,1776238247455,-1600.0,0.00015114,2]
[420524005,1776238247466,-202.28955213,0.00015143,7]
[420524006,1776238247478,-165.64293817,0.00015147,2]
[420524007,1776238247495,-168.0,0.00015166,2]
[420524008,1776238247505,-152.0,0.00015172,19]
[420524009,1776238247516,-150.0,0.00015174,2]
[420524010,1776238247527,-2000.0,0.00015178,2]
[420524011,1776238247540,-200.0,0.00015178,2]
[420524012,1776238247550,-1000.0,0.00015194,2]
[420524013,1776238247561,-168.0,0.000152,2]
[420524014,1776238247576,-150.0,0.000152,2]
[420524015,1776238247589,-202.28955213,0.000152,2]
[420524016,1776238247601,-259.66117097,0.000152,2]
[420524017,1776238247612,-259.06802416,0.000152,2]
[420524018,1776238247626,-359.19074187,0.000152,2]
[420524019,1776238247638,-171.7040874,0.00015209,2]
[420524020,1776238247649,-7230.29240467,0.0001521,2]
[420524021,1776238247660,-150.0,0.00015236,2]
[420524022,1776238247673,-150.0,0.00015244,2]
[420524023,1776238247689,-152.0,0.00015245,20]
[420524024,1776238247701,-501.26158256,0.00015249,2]
[420524025,1776238247719,-151.0,0.00015249,2]
[420524026,1776238247729,-6956.0,0.0001526,2]
[420524027,1776238248234,-281.0,0.0001526,2]
[420524028,1776238248259,-150.0,0.00015265,2]
[420524029,1776238248279,-168.0,0.00015269,2]
[420524030,1776238248300,-1000.0,0.0001527,2]
[420524031,1776238248311,-1655.13652994,0.0001527,2]
[420524032,1776238248336,-500.70014442,0.00015273,2]
[420524033,1776238248349,-259.02278019,0.00015273,2]
[420524034,1776238248362,-500.0,0.00015273,2]
[420524035,1776238248390,-500.0,0.00015273,2]
[420524036,1776238248400,-500.0,0.00015273,2]
[420524037,1776238248423,-500.0,0.00015273,2]
[420524038,1776238248437,-500.0,0.00015273,2]
[420524039,1776238248447,-502.30174809,0.00015273,2]
[420524040,1776238248471,-500.0,0.00015273,2]
[420524041,1776238248481,-500.0,0.00015273,2]
[420524042,1776238248491,-500.0,0.00015273,2]
[420524043,1776238248511,-500.0,0.00015273,2]
[420524044,1776238248522,-245.97548504,0.00015273,2]
[420524045,1776238248533,-505.5691062,0.00015273,2]
[420524046,1776238248554,-349.61058898,0.00015273,2]
[420524047,1776238248566,-500.0,0.00015273,2]
[420524048,1776238248576,-502.0810767,0.00015273,2]
[420524049,1776238248595,-503.25382251,0.00015273,2]
[420524050,1776238248606,-503.26427326,0.00015273,2]
[420524051,1776238248616,-152.46425,0.00015273,2]
[420524052,1776238248627,-150.0,0.00015288,2]
[420524053,1776238248642,-150.0,0.00015288,2]
[420524054,1776238248653,-150.0,0.00015288,2]
[420524055,1776238248663,-280.0,0.00015288,2]
[420524056,1776238248675,-150.0,0.00015288,2]
[420524057,1776238248686,-250.0,0.0001529,2]
[420524058,1776238248696,-593.98585605,0.0001529,2]
[420524059,1776238248707,-202.19,0.00015293,2]
[420524060,1776238248716,-500.0,0.00015298,2]
[420524061,1776238248729,-150.0,0.00015299,2]
[420524062,1776238248741,-150.0,0.00015299,2]
[420524063,1776238248750,-150.0,0.00015299,2]
[420524064,1776238248760,-150.0,0.00015299,2]
[420524065,1776238248770,-150.0,0.00015299,2]
[420524066,1776238248782,-150.0,0.00015299,2]
[420524067,1776238248795,-150.0,0.00015299,2]
[420524068,1776238248805,-150.0,0.00015299,2]
[420524069,1776238248816,-150.0,0.00015299,2]
[420524070,1776238248831,-150.0,0.00015299,2]
[420524071,1776238248841,-241.0,0.00015299,2]
[420524072,1776238248853,-500.0,0.00015299,2]
[420524073,1776238248869,-500.0,0.00015299,3]
[420524074,1776238248881,-500.0,0.00015299,7]
[420524075,1776238248891,-500.0,0.00015299,8]
[420524076,1776238248903,-500.0,0.00015299,9]
[420524077,1776238248918,-500.0,0.00015299,10]
[420524078,1776238248937,-500.0,0.00015299,11]
[420524079,1776238248947,-500.0,0.00015299,12]
[420524080,1776238248967,-500.0,0.00015299,2]
[420524081,1776238248976,-500.0,0.00015299,2]
[420524082,1776238248986,-500.0,0.00015299,2]
[420524083,1776238249005,-258.73962788,0.00015299,2]
[420524084,1776238249018,-500.0,0.00015299,2]
[420524085,1776238249029,-500.0,0.00015299,2]
[420524086,1776238249047,-153.0649219,0.00015299,2]
[420524087,1776238249059,-500.0,0.00015299,2]
[420524088,1776238249068,-500.0,0.00015299,2]
[420524089,1776238249082,-500.0,0.00015299,2]
[420524090,1776238249095,-500.0,0.00015299,2]
[420524091,1776238249106,-500.0,0.00015299,2]
[420524092,1776238249121,-500.0,0.00015299,2]
[420524093,1776238249137,-500.0,0.00015299,2]
[420524094,1776238249150,-500.0,0.00015299,2]
[420524095,1776238249169,-1008.81748156,0.00015299,5]
[420524096,1776238249185,-1008.81748156,0.00015299,5]
[420524097,1776238249198,-1008.81748156,0.00015299,5]
[420524098,1776238249210,-500.0,0.00015299,2]
[420524099,1776238249225,-500.0,0.00015299,2]
[420524100,1776238249242,-220.551923,0.00015299,2]
[420524101,1776238249255,-220.551923,0.00015299,2]
[420524102,1776238249270,-220.551923,0.00015299,2]
[420524103,1776238249283,-220.551923,0.00015299,2]
[420524104,1776238249303,-150.0,0.00015299,2]
[420524105,1776238249318,-425.02058166,0.00015299,2]
[420524106,1776238249339,-500.0,0.00015299,2]
[420524107,1776238249357,-328.27931355,0.00015299,2]
[420524108,1776238249369,-1114.528901,0.00015299,2]
[420524109,1776238249393,-1114.528901,0.00015299,2]
[420524110,1776238249410,-1114.528901,0.00015299,2]
[420524111,1776238249429,-1114.5289,0.00015299,2]
[420524112,1776238249446,-151.0,0.00015299,2]
[420524113,1776238249456,-500.0,0.00015299,2]
[420524114,1776238249482,-500.0,0.00015299,2]
[420524115,1776238249493,-500.0,0.00015299,2]
[420524116,1776238249502,-500.0,0.00015299,2]
[420524117,1776238249525,-578.64079274,0.00015299,2]
[420524118,1776238249535,-270.0,0.000153,2]
[420524119,1776238249544,-219917.49668088,0.000153,2]
[420524120,1776238251265,-1086.8797393,0.000153,2]
[420524121,1776238251287,-322.63456367,0.000153,2]
[420524122,1776238251298,-2028.40914731,0.000153,2]
[420524123,1776238251309,-828.30375,0.000153,2]
[420524124,1776238251583,-1000.49446978,0.000153,2]
[420524125,1776238251607,-1461.28206322,0.000153,2]
[420524126,1776238251621,-258.117,0.000153,2]
[420524127,1776238251635,-73801.51796857,0.000153,2]
[420524128,1776238251651,-750.0,0.000153,2]
[420524129,1776238251722,-500.0,0.00012603,2]
[420524130,1776238251739,-1155.35490122,0.000153,2]
[420524131,1776238251755,-2271.31682705,0.000153,2]
[420524132,1776238251770,-901.67907922,0.000153,2]
[420524133,1776238251807,-1015.96867818,0.000153,2]
[420524134,1776238251934,-483.65945066,0.000153,2]
[420524135,1776238252058,-862.91952571,0.000153,2]
[420524136,1776238252423,-1669.75720428,0.000153,2]
[420524137,1776238252441,-1948.0427217,0.000153,2]
[420524138,1776238252455,-1176.27984122,0.000153,2]
[420524139,1776238252478,-1199.83898603,0.000153,2]
[420524140,1776238252738,-500.0,0.00012877,2]
[420524141,1776238252752,-500.0,0.00013151,2]
[420524142,1776238252762,-2473.0,0.00013678,2]
[420524143,1776238252773,-79415.16014946,0.000153,2]
[420524144,1776238252791,-101381.43375383,0.000153,2]
[420524145,1776238252807,-3334.34266286,0.000153,2]
[420524146,1776238253977,-8256.93446698,0.000153,2]
[420524147,1776238254243,-15250.40299161,0.000153,2]
[420524148,1776238254332,-22983.12000047,0.000153,2]
[420524149,1776238254353,-2573.2682,0.000153,2]
[420524150,1776238254391,-199.305002,0.00013672,2]
[420524151,1776238254409,-10870.694998,0.000153,2]
[420524152,1776238254423,-5000.0,0.000153,2]
[420524153,1776238254452,-10995.533306,0.000153,2]
[420524154,1776238254467,-901.97472321,0.000153,2]
[420524165,1776238746099,937.07,0.00016271,30]
[420524192,1776239433601,-1460.32375375,0.00011,3]
[420524193,1776239433697,-1031.00844634,0.00011,3]
[420524194,1776239433716,-1926.66779991,0.00011,3]
[420524195,1776239433734,-1200.0,0.00011199,2]
[420524196,1776239433750,-306.67216681,0.000112,5]
[420524197,1776239433770,-2021.97763837,0.000112,5]
[420524198,1776239433833,-3203.35019482,0.000112,5]
[420524199,1776239433843,-150.0,0.00011416,2]
[420524200,1776239433869,-150.0,0.00011416,2]
[420524201,1776239433885,-150.0,0.00011416,2]
[420524202,1776239433899,-151.07568133,0.00011416,2]
[420524203,1776239433928,-151.72396292,0.00011416,2]
[420524204,1776239433944,-150.0,0.00011416,2]
[420524205,1776239433982,-150.36547458,0.00011416,2]
[420524206,1776239434457,-150.51127256,0.00011416,2]
[420524207,1776239434495,-150.0,0.00011416,2]
[420524208,1776239434505,-150.48637756,0.00011416,2]
[420524209,1776239434515,-150.0,0.00011416,2]
[420524210,1776239434533,-2000.0,0.00011498,2]
[420524211,1776239434564,-150.0,0.00011532,2]
[420524212,1776239434578,-1189.07,0.00011586,2]
[420524213,1776239434590,-150.0,0.00011647,2]
[420524214,1776239434600,-150.0,0.00011762,2]
[420524215,1776239434610,-1000.0,0.0001177,2]
[420524216,1776239434625,-150.0,0.00011858,2]
[420524217,1776239434639,-150.0,0.00011878,2]
[420524218,1776239434649,-150.0,0.00011993,2]
[420524219,1776239434663,-2190.26,0.00012013,2]
[420524220,1776239434675,-150.0,0.00012051,2]
[420524221,1776239434684,-150.0,0.00012051,2]
[420524222,1776239434694,-150.0,0.00012108,2]
[420524223,1776239434707,-150.0,0.00012224,2]
[420524224,1776239434717,-150.0,0.00012339,2]
[420524225,1776239434728,-161.44,0.00012426,2]
[420524226,1776239434738,-150.0,0.00012454,2]
[420524227,1776239434749,-150.0,0.0001257,2]
[420524228,1776239434759,-9224.51316918,0.00012585,2]
[420524229,1776239434769,-3316.9692,0.00012593,2]
[420524230,1776239434779,-20051.29927554,0.00012593,2]
[420524231,1776239434793,-443.39958113,0.00012593,2]
[420524232,1776239434806,-1272.35455884,0.00012593,2]
[420524233,1776239434823,-474.41347366,0.00012593,2]
[420524234,1776239434838,-22477.65061083,0.00012593,2]
[420524235,1776239434848,-5465.5849,0.00012593,2]
[420524236,1776239434858,-2500.0,0.00012593,2]
[420524237,1776239434868,-255.93336219,0.00012593,2]
[420524238,1776239434878,-956.40293864,0.00012593,2]
[420524239,1776239434888,-257.35362056,0.00012593,2]
[420524240,1776239434898,-1791.17082651,0.00012593,2]
[420524241,1776239434908,-493.68181816,0.00012593,2]
[420524242,1776239434918,-8132.6934595,0.00012593,2]
[420524243,1776239434928,-15672.78077716,0.00012593,2]
[420524244,1776239434938,-671.3784,0.00012658,2]
[420524245,1776239434947,-2326.182,0.00012658,2]
[420524246,1776239434957,-168.243,0.00012658,2]
[420524247,1776239434968,-5988.41,0.00012658,2]
[420524248,1776239434977,-867.48,0.00012658,2]
[420524249,1776239434991,-9999.99,0.00012658,2]
[420524250,1776239435001,-500.0,0.00012673,2]
[420524251,1776239435011,-160.05213198,0.00012673,2]
[420524252,1776239435021,-500.645826,0.00012673,2]
[420524253,1776239435031,-500.0,0.00012673,2]
[420524254,1776239435058,-500.0,0.00012673,2]
[420524255,1776239435068,-1437.52786159,0.00012683,2]
[420524256,1776239435078,-153.46564694,0.00012685,2]
[420524257,1776239435087,-152.97726268,0.00012685,2]
[420524258,1776239435097,-153.8774472,0.00012685,2]
[420524259,1776239435106,-155.01953093,0.00012685,2]
[420524260,1776239435116,-153.72359232,0.00012685,2]
[420524261,1776239435125,-153.72951698,0.00012685,2]
[420524262,1776239435136,-252.57043834,0.00012685,2]
[420524263,1776239435147,-500.0,0.00012685,2]
[420524264,1776239435156,-500.0,0.00012685,2]
[420524265,1776239435166,-500.0,0.00012685,2]
[420524266,1776239435176,-500.0,0.00012685,2]
[420524267,1776239435186,-500.0,0.00012685,2]
[420524268,1776239435196,-500.0,0.00012685,2]
[420524269,1776239435206,-500.0,0.00012685,2]
[420524270,1776239435217,-500.0,0.00012685,2]
[420524271,1776239435227,-500.0,0.00012685,2]
[420524272,1776239435237,-500.0,0.00012685,2]
[420524273,1776239435247,-500.0,0.00012685,2]
[420524274,1776239435257,-254.38069829,0.00012685,2]
[420524275,1776239435273,-300.0,0.00012692,2]
[420524276,1776239435291,-378.05523122,0.00012692,2]
[420524277,1776239435301,-500.0,0.00012692,2]
[420524278,1776239435313,-500.0,0.00012692,2]
[420524279,1776239435323,-500.0,0.00012692,2]
[420524280,1776239435333,-500.0,0.00012692,2]
[420524281,1776239435345,-500.0,0.00012692,2]
[420524282,1776239435357,-500.0,0.00012692,2]
[420524283,1776239435367,-500.0,0.00012692,2]
[420524284,1776239435377,-500.0,0.00012692,2]
[420524285,1776239435391,-500.0,0.00012692,2]
[420524286,1776239435402,-500.0,0.00012692,2]
[420524287,1776239435412,-500.0,0.00012692,2]
[420524288,1776239435423,-500.0,0.00012692,2]
[420524289,1776239435443,-500.0,0.00012692,2]
[420524290,1776239435453,-500.0,0.00012692,2]
[420524291,1776239435482,-500.0,0.00012692,2]
[420524292,1776239435497,-500.0,0.00012692,2]
[420524293,1776239435514,-500.0,0.00012692,2]
[420524294,1776239435541,-500.0,0.00012692,2]
[420524295,1776239435576,-500.0,0.00012692,2]
[420524296,1776239435587,-500.0,0.00012692,2]
[420524297,1776239435597,-500.0,0.00012692,2]
[420524298,1776239435624,-500.0,0.00012692,2]
[420524299,1776239435634,-500.0,0.00012692,2]
[420524300,1776239435650,-500.0,0.00012692,2]
[420524301,1776239435673,-500.0,0.00012692,2]
[420524302,1776239435695,-500.0,0.00012692,2]
[420524303,1776239435720,-159.72371906,0.00012692,2]
[420524304,1776239435739,-500.0,0.00012692,2]
[420524305,1776239435769,-500.0,0.00012692,2]
[420524306,1776239435794,-500.0,0.00012692,2]
[420524307,1776239435816,-500.0,0.00012692,2]
[420524308,1776239435838,-500.0,0.00012692,2]
[420524309,1776239435864,-500.0,0.00012692,2]
[420524310,1776239435887,-500.0,0.00012692,2]
[420524311,1776239435917,-200.0,0.00012692,2]
[420524312,1776239435937,-149.90458312,0.00012692,2]
[420524331,1776239438750,-275.32945933,0.00012692,2]
[420524333,1776239438766,-91.67054067,0.00012692,2]
[420524336,1776239438787,-350.61487439,0.00012692,2]
[420524338,1776239438800,-252.61454288,0.00012692,2]
[420524340,1776239438830,-118.61943511,0.00012692,2]
[420524342,1776239438844,-180.20122835,0.00012692,2]
[420524344,1776239438870,-594.88155671,0.00012692,2]
[420524346,1776239438887,-155.825,0.00012692,2]
[420524348,1776239438912,-150.0,0.00012692,2]
[420524349,1776239438927,-250.0,0.00012692,2]
[420524350,1776239438949,-5857.83887052,0.00012693,2]
[420524351,1776239438976,-44101.10283856,0.00012693,2]
[420524352,1776239439104,-981.56,0.00012693,2]
[420524353,1776239439136,-4179.42892512,0.00012693,2]
[420524354,1776239439194,-1981.77987735,0.00012693,2]
[420524355,1776239439221,-485.73056502,0.00012693,2]
[420524360,1776239440369,-404.39358829,0.00012693,2]
[420524361,1776239440455,-3826.55953883,0.00012693,2]
[420524414,1776239445434,-254128.69180054,0.00012693,2]
[420524415,1776239445460,-359.09560151,0.00012693,2]
[420524416,1776239445497,-5031.70543463,0.00012693,2]
[420524419,1776239446406,-5455.4998462,0.00012693,2]
[420524420,1776239446419,-12360.99546702,0.00012693,2]
[420524421,1776239446574,-167285.14886725,0.00012693,2]
[420524422,1776239446631,-125852.30924573,0.00012693,2]
[420524423,1776239446760,-6542.40140351,0.00012693,2]
[420524424,1776239446918,-24172.91674081,0.00012693,2]
[420524429,1776239499480,500.0,8.777e-05,2]
[420524430,1776239518757,500.0,8.767e-05,2]
[420524431,1776239520117,500.0,8.767e-05,2]
[420524432,1776239521685,500.0,8.767e-05,2]
[420524433,1776239522449,500.0,8.767e-05,2]
[420524434,1776239523691,500.0,8.767e-05,2]
[420524435,1776239525017,500.0,8.767e-05,2]
[420524436,1776239525963,500.0,8.767e-05,2]
[420524437,1776239527016,500.0,8.767e-05,2]
[420524438,1776239529957,500.0,8.767e-05,2]
[420524439,1776239530125,500.0,8.767e-05,2]
[420524440,1776239530367,500.0,8.767e-05,2]
[420524441,1776239531627,500.0,8.767e-05,2]
[420524442,1776239533203,500.0,8.767e-05,2]
[420524443,1776239534301,500.0,8.767e-05,2]
[420524444,1776239536514,500.0,8.767e-05,2]
[420524445,1776239537342,500.0,8.767e-05,2]
[420524446,1776239538806,500.0,8.767e-05,2]
[420524447,1776239542442,500.0,8.767e-05,2]
[420524448,1776239543658,500.0,8.767e-05,2]
[420524449,1776239585083,247.0,8.767e-05,3]
[420524450,1776239647151,234.0,8.767e-05,3]
[420524451,1776239653641,162.0,8.767e-05,3]
[420524452,1776239707093,223.0,8.767e-05,3]
[420524453,1776239708084,157.0,8.767e-05,3]
[420524458,1776239769061,212.0,8.767e-05,3]
[420524459,1776239827576,201.0,8.767e-05,3]
[420524460,1776239888587,191.0,8.767e-05,3]
[420524468,1776240011876,157.0,8.767e-05,3]
[420524469,1776240012046,181.0,8.767e-05,3]
[420524471,1776240054866,10000.0,8.777e-05,2]
[420524473,1776240070241,0.01,8.767e-05,3]
[420524474,1776240070269,162.99,8.767e-05,3]
[420524481,1776240097411,9837.02,8.777e-05,2]
[420524482,1776240097453,162.98,8.777e-05,2]
[420524489,1776240110430,-163.0,9.463e-05,3]
[420524490,1776240110480,-151.0,0.0001,2]
[420524491,1776240110542,-12641.52796066,0.0001,2]
[420524492,1776240110601,-401.47829206,0.0001,2]
[420524493,1776240110654,-163.0,0.0001016,3]
[420524494,1776240110737,-1200.0,0.00010408,2]
[420524495,1776240110821,-300.0,0.00010408,2]
[420524496,1776240110865,-1200.0,0.00010409,2]
[420524497,1776240110911,-300.0,0.00010409,2]
[420524498,1776240110949,-226.0,0.00010409,2]
[420524499,1776240110991,-300.0,0.00010409,2]
[420524500,1776240111031,-300.0,0.00010409,2]
[420524501,1776240111067,-1966.44006454,0.0001041,2]
[420524502,1776240111106,-5000.0,0.0001041,2]
[420524503,1776240111143,-157.0,0.00010421,3]
[420524504,1776240111178,-1797.0,0.000106,2]
[420524505,1776240111217,-119828.55368274,0.000107,2]
[420524506,1776240128401,9837.03,8.777e-05,2]
[420524507,1776240128440,162.97,8.777e-05,2]
[420524508,1776240150125,9837.04,8.777e-05,2]
[420524509,1776240150149,162.96,8.777e-05,2]
[420524510,1776240170247,9837.05,8.777e-05,2]
[420524511,1776240170303,162.95,8.777e-05,2]
[420524512,1776240191633,9837.06,8.777e-05,2]
[420524513,1776240191666,162.94,8.777e-05,2]
[420524519,1776240284042,9837.07,8.777e-05,2]
[420524520,1776240284065,162.93,8.777e-05,2]
[420524521,1776240298835,2821.32,8.777e-05,2]
[420524522,1776240430995,-163.0,8.777e-05,3]
[420524523,1776240431043,-158.0,8.777e-05,3]
[420524524,1776240431109,-276.0,8.777e-05,2]
[420524525,1776240431164,-2251.195,9.655e-05,2]
[420524526,1776240431216,-1239.06123038,9.655e-05,2]
[420524529,1776240566554,-150.0,8.777e-05,3]
[420524530,1776240566587,-150.0,9.473e-05,3]
[420524531,1776240566619,-928.96561871,9.654e-05,2]
[420524562,1776240633460,-150.0,8.777e-05,3]
[420524563,1776240633469,-150.0,9.555e-05,3]
[420524564,1776240633481,-4.03438129,9.654e-05,2]
[420524565,1776240633490,-300.0,9.654e-05,2]
[420524566,1776240633500,-1200.0,9.654e-05,2]
[420524567,1776240633510,-300.0,9.654e-05,2]
[420524568,1776240633522,-3760.93876962,9.655e-05,2]
[420524569,1776240633531,-31.18684909,9.655e-05,2]
[420524570,1776240633542,-449.80508817,9.655e-05,2]
[420524571,1776240633558,-4519.00806274,9.655e-05,2]
[420524572,1776240633570,-250.0,9.767e-05,2]
[420524573,1776240633580,-4293.43565038,0.000102,3]
[420524574,1776240633617,-772.83206182,0.000102,3]
[420524575,1776240633645,-407.0,0.000102,3]
[420524576,1776240633657,-58.7322878,0.000102,3]
[420524577,1776240633666,-171.6799549,0.00010208,2]
[420524578,1776240633676,-65.58775727,0.00010279,2]
[420524579,1776240633687,-1534.41224273,0.00010279,2]
[420524580,1776240633697,-300.0,0.00010299,2]
[420524581,1776240633707,-564.9993,0.00010308,2]
[420524582,1776240633716,-150.0,0.00010333,3]
[420524583,1776240633726,-5532.0,0.000104,5]
[420524584,1776240633736,-1555.35886815,0.00010409,2]
[420524585,1776240633745,-228.16311447,0.00010409,2]
[420524586,1776240633754,-2682.73774522,0.00010409,2]
[420524587,1776240633765,-846.25946515,0.00010409,2]
[420524588,1776240633774,-1349.79,0.00010537,2]
[420524589,1776240633783,-150.0,0.00010583,2]
[420524590,1776240633794,-9944.01,0.00010584,2]
[420524591,1776240633806,-56702.33,0.00010604,2]
[420524592,1776240633816,-1680.0,0.00010619,2]
[420524593,1776240633826,-420.0,0.00010619,2]
[420524594,1776240633837,-420.0,0.00010619,2]
[420524595,1776240633851,-250.0,0.0001062,2]
[420524596,1776240633861,-250.0,0.0001062,2]
[420524597,1776240633871,-171.67995488,0.00010684,2]
[420524598,1776240633880,-774.2301018,0.00010699,2]
[420524599,1776240633895,-29273.09213399,0.000107,2]
[420524600,1776240633907,-200.0,0.00010819,2]
[420524601,1776240633919,-454.0775,0.000109,2]
[420524602,1776240633931,-219.71,0.0001096,2]
[420524603,1776240633945,-193.31,0.0001096,2]
[420524604,1776240633961,-150.0,0.0001096,2]
[420524605,1776240633970,-196.67,0.0001096,2]
[420524606,1776240633988,-196.68,0.0001096,2]
[420524607,1776240634003,-500.0,0.00011002,2]
[420524608,1776240634013,-150.0,0.0001111,3]
[420524609,1776240634031,-171.67995488,0.0001116,2]
[420524610,1776240634044,-243.35,0.0001126,2]
[420524611,1776240634057,-24999.99,0.00011281,2]
[420524612,1776240634078,-9999.99,0.00011281,2]
[420524613,1776240634089,-150.99,0.00011281,2]
[420524614,1776240634103,-299.99,0.00011281,2]
[420524615,1776240634120,-150.0,0.000113,2]